bitfinex/quotes_ETHUSD_20210701
["timestamp","ask_amount","ask_price","bid_price","bid_amount"]
[1625175974305,8.06813694,2132.8,2131.1,0.00659949]
[1625175974403,23.07556664,2132.8,2131.1,0.00659949]
[1625175974556,34.59397224,2132.8,2131.1,0.00659949]
[1625175974658,11.24586,2132.0,2130.4,2.16236484]
[1625175974756,11.25680766,2132.0,2130.3,0.02276118]
[1625175974856,0.15190541,2131.9,2130.3,0.02276118]
[1625175975554,0.15190541,2131.9,2131.8,0.01691849]
[1625175975653,9.2195,2132.0,2131.8,0.01691849]
[1625175975855,0.04,2131.9,2131.8,0.01691849]
[1625175976307,9.2195,2132.0,2131.8,0.01691849]
[1625175977967,7.03745,2131.9,2131.8,0.01691849]
[1625175978067,12.04745,2131.9,2131.8,0.01691849]
[1625175978314,12.08745,2131.9,2131.8,0.01691849]
[1625175978832,0.04,2131.9,2131.8,0.01691849]
[1625175978929,7.04911694,2132.8,2131.8,0.01691849]
[1625175980933,15.0,2132.7,2131.8,0.01691849]
[1625175981055,23.2165,2132.7,2131.8,0.01691849]
[1625175981147,7.03694,2132.3,2131.8,0.01691849]
[1625175981347,12.04694,2132.3,2131.8,0.01691849]
[1625175981747,20.04694,2132.3,2131.8,0.01691849]
[1625175981847,13.01,2132.3,2131.8,0.01691849]
[1625175982454,5.01,2132.3,2131.8,0.01691849]
[1625175982549,7.0369,2132.1,2131.8,0.01691849]
[1625175982750,12.0469,2132.1,2131.8,0.01691849]
[1625175983449,7.0369,2132.1,2131.8,0.01691849]
[1625175984847,12.0469,2132.1,2131.8,0.01691849]
[1625175984947,7.0369,2132.1,2131.8,0.01691849]
[1625175985049,12.0469,2132.1,2131.8,0.01691849]
[1625175985145,7.0369,2132.1,2131.8,0.01691849]
[1625175985296,12.0469,2132.1,2131.8,0.01691849]
[1625175985397,0.06,2132.0,2131.8,0.01691849]
[1625175985559,0.06,2132.0,2131.3,0.01868134]
[1625175986409,0.1884639,2131.9,2130.3,0.02276118]
[1625175986604,4.3426639,2131.9,2130.3,0.02276118]
[1625175986707,7.03837,2131.3,2130.3,0.02276118]
[1625175986956,15.74307,2131.3,2130.3,0.02276118]
[1625175987788,3.6947,2131.3,2130.3,0.02276118]
[1625175989298,8.7047,2131.3,2130.3,0.02276118]
[1625175989398,7.03846,2131.2,2130.3,0.02276118]
[1625175989550,12.04846,2131.2,2130.3,0.02276118]
[1625175990313,7.03846,2131.2,2130.3,0.02276118]
[1625175990711,3.6947,2131.3,2130.3,0.02276118]
[1625175992320,3.6382,2131.4,2130.3,0.02276118]
[1625175992321,2.182,2131.4,2130.3,0.02276118]
[1625175992474,10.52467,2131.2,2130.3,0.02276118]
[1625175996061,15.53467,2131.2,2130.3,0.02276118]
[1625175996313,0.1,2131.1,2130.3,0.02276118]
[1625175997279,3.6205233,2131.1,2130.3,0.02276118]
[1625175997483,7.04105,2130.7,2130.3,0.02276118]
[1625175997591,15.71045,2130.7,2130.3,0.02276118]
[1625175997688,8.6694,2130.7,2130.3,0.02276118]
[1625175998693,15.71045,2130.7,2130.3,0.02276118]
[1625175999871,19.2312164,2130.7,2130.3,0.02276118]
[1625175999970,7.04162,2130.5,2130.3,0.02276118]
[1625176000070,12.05162,2130.5,2130.3,0.02276118]
[1625176000321,12.05162,2130.5,2129.8,0.02507397]
[1625176000425,12.06292062,2130.5,2129.8,0.02507397]
[1625176000521,3.5217633,2130.4,2129.8,0.02507397]
[1625176000619,3.7217633,2130.4,2129.8,0.02507397]
[1625176000775,8.7317633,2130.4,2129.8,0.02507397]
[1625176000875,3.7217633,2130.4,2129.8,0.02507397]
[1625176001119,0.04,2130.3,2129.8,0.02507397]
[1625176001222,12.0311,2130.1,2129.8,0.02507397]
[1625176001460,17.0411,2130.1,2129.8,0.02507397]
[1625176001711,0.14,2130.0,2129.8,0.02507397]
[1625176001814,0.14,2130.0,2129.8,7.397e-05]
[1625176002315,7.04476,2129.9,2129.8,7.397e-05]
[1625176002464,7.24476,2129.9,2129.8,7.397e-05]
[1625176002611,12.25476,2129.9,2129.8,7.397e-05]
[1625176002713,7.24476,2129.9,2129.8,7.397e-05]
[1625176002811,12.25476,2129.9,2129.8,7.397e-05]
[1625176002963,7.24476,2129.9,2129.8,7.397e-05]
[1625176003062,12.25476,2129.9,2129.8,7.397e-05]
[1625176003262,12.26644374,2129.9,2128.8,0.03020181]
[1625176003368,7.04546,2129.4,2128.8,0.03020181]
[1625176003465,11.49226,2129.4,2128.8,0.03020181]
[1625176003592,16.50226,2129.4,2128.8,0.03020181]
[1625176003944,3.5239331,2129.2,2128.8,0.03020181]
[1625176004042,8.5339331,2129.2,2128.8,0.03020181]
[1625176004141,0.06,2129.1,2128.8,0.03020181]
[1625176005197,7.04787,2129.0,2128.8,0.03020181]
[1625176005445,3.3638,2128.9,2128.8,1.81e-06]
[1625176005544,8.3738,2128.9,2128.8,1.81e-06]
[1625176008097,8.2538,2128.9,2128.8,1.81e-06]
[1625176008199,10.07387,2129.0,2128.8,1.81e-06]
[1625176008299,7.04787,2129.0,2128.8,1.81e-06]
[1625176008949,9.39716,2129.1,2128.8,1.81e-06]
[1625176009049,11.74592,2129.6,2128.8,1.81e-06]
[1625176009350,7.04531,2129.2,2128.8,1.81e-06]
[1625176009451,11.74592,2129.6,2128.8,1.81e-06]
[1625176009750,11.76855397,2130.3,2128.8,1.81e-06]
[1625176010050,11.76855397,2130.3,2128.8,2.21130181]
[1625176011017,7.04186,2130.2,2128.8,9.25316181]
[1625176011117,0.02507397,2130.3,2128.9,4.59554945]
[1625176011219,0.02507397,2130.3,2128.9,6.68404945]
[1625176011317,0.02507397,2130.3,2128.9,4.59554945]
[1625176011416,0.02507397,2130.3,2129.0,17.1313]
[1625176011670,0.02507397,2130.3,2129.1,2.129869]
[1625176011817,0.02507397,2130.3,2129.2,18.8734]
[1625176011917,0.02276118,2130.8,2129.3,0.12436567]
[1625176012070,0.02276118,2130.8,2129.3,2.12866567]
[1625176012165,0.02276118,2130.8,2129.4,15.0]
[1625176012267,0.02276118,2130.8,2129.9,7.03812]
[1625176012369,0.02276118,2130.8,2129.9,11.57922]
[1625176012467,0.02276118,2130.8,2129.9,24.58922]
[1625176012664,0.02276118,2130.8,2130.0,2.0137]
[1625176014592,0.02276118,2130.8,2130.1,7.03785]
[1625176014698,0.02276118,2130.8,2129.9,26.93678748]
[1625176014838,0.02276118,2130.8,2130.2,2.2145]
[1625176014940,0.02276118,2130.8,2129.9,11.89866748]
[1625176015036,0.02276118,2130.8,2130.3,2.0336]
[1625176015140,0.02276118,2130.8,2129.9,6.88866748]
[1625176015288,0.02276118,2130.8,2129.9,2.34756748]
[1625176015388,0.02276118,2130.8,2130.0,2.193]
[1625176015691,7.06194118,2130.8,2130.0,2.193]
[1625176015990,12.07194118,2130.8,2130.0,2.193]
[1625176016089,7.06194118,2130.8,2130.0,2.193]
[1625176016590,12.07194118,2130.8,2130.0,2.193]
[1625176016892,7.06194118,2130.8,2130.0,2.193]
[1625176017058,12.07194118,2130.8,2129.7,2.2426]
[1625176017208,7.06194118,2130.8,2129.6,5.01]
[1625176017309,12.07194118,2130.8,2129.6,2.0392]
[1625176017410,12.07194118,2130.8,2129.5,22.17473706]
[1625176017510,12.07194118,2130.8,2129.7,2.0714]
[1625176017610,12.07194118,2130.8,2129.5,7.25798197]
[1625176017716,16.22634118,2130.8,2129.5,7.25798197]
[1625176017812,16.22634118,2130.8,2129.5,2.24798197]
[1625176017912,16.22634118,2130.8,2129.5,5.01]
[1625176018017,16.22634118,2130.8,2129.1,4.52306748]
[1625176018115,0.14831654,2130.7,2129.1,4.52306748]
[1625176018215,0.16522253,2130.7,2129.1,2.34756748]
[1625176018313,0.30522253,2130.7,2129.1,2.34756748]
[1625176018412,0.14,2130.7,2129.1,2.34756748]
[1625176018515,0.27896276,2130.7,2129.1,2.34756748]
[1625176018917,0.2897625,2130.7,2129.1,2.34756748]
[1625176019015,0.12,2130.6,2128.7,7.25798197]
[1625176019119,7.04291,2129.8,2128.7,14.30069197]
[1625176019339,7.04291,2129.8,2128.7,17.29069197]
[1625176019426,7.04291,2129.8,2128.7,2.24798197]
[1625176019628,12.05291,2129.8,2128.7,2.24798197]
[1625176020381,12.05291,2129.8,2128.3,4.40435222]
[1625176020482,12.05291,2129.8,2128.3,2.38055222]
[1625176020582,0.14203746,2129.7,2128.3,0.03298474]
[1625176021082,0.06,2129.6,2128.3,0.03298474]
[1625176021286,7.04533,2129.1,2128.3,0.03298474]
[1625176021588,12.05533,2129.1,2128.3,0.03298474]
[1625176021686,7.04533,2129.1,2128.3,0.03298474]
[1625176021782,12.05533,2129.1,2128.3,0.03298474]
[1625176021884,0.04,2129.0,2128.3,0.03298474]
[1625176022286,14.40377,2129.3,2128.3,0.03298474]
[1625176022940,7.04585,2128.9,2128.3,0.03298474]
[1625176023039,12.05585,2128.9,2128.3,0.03298474]
[1625176023543,9.27382191,2128.9,2128.3,0.03298474]
[1625176023832,0.06,2128.8,2128.3,0.03298474]
[1625176024019,7.04738,2128.6,2128.3,0.03298474]
[1625176024273,12.05738,2128.6,2128.3,0.03298474]
[1625176024421,7.04738,2128.6,2128.3,0.03298474]
[1625176024519,12.05738,2128.6,2128.3,0.03298474]
[1625176024822,0.04,2128.5,2128.2,0.96105548]
[1625176025122,7.08795,2128.5,2128.2,0.96105548]
[1625176025272,7.04795,2128.5,2128.2,0.96105548]
[1625176025373,12.05795,2128.5,2128.2,0.96105548]
[1625176028132,5.01,2128.5,2128.2,0.96105548]
[1625176028336,5.04298474,2128.8,2128.2,0.96105548]
[1625176028688,0.03298474,2128.8,2128.2,0.96105548]
[1625176028842,0.03298474,2128.8,2128.2,3.60905548]
[1625176029589,0.03298474,2128.8,2128.2,10.65430548]
[1625176030824,0.03298474,2128.8,2128.2,3.60905548]
[1625176031526,0.03298474,2128.8,2128.3,2.0452]
[1625176033031,8.474e-05,2128.8,2128.3,2.0452]
[1625176033176,8.474e-05,2128.8,2128.3,8.58234248]
[1625176033278,8.474e-05,2128.8,2128.4,2.24798197]
[1625176033429,5.01,2130.0,2128.4,2.24798197]
[1625176033580,7.04259,2130.0,2129.0,4.0443]
[1625176034180,15.02276118,2130.8,2129.0,4.0443]
[1625176034278,20.02276118,2130.8,2129.0,4.0443]
[1625176034430,0.12,2130.7,2129.0,4.0443]
[1625176034526,2.60599935,2130.7,2129.0,4.0443]
[1625176034627,15.0,2130.6,2129.0,4.0443]
[1625176034728,9.39196,2129.8,2129.0,4.0443]
[1625176035292,14.40196,2129.8,2129.0,4.0443]
[1625176035639,14.40196,2129.8,2129.0,6.325]
[1625176036748,12.9141593,2130.1,2129.0,6.325]
[1625176036749,9.3921,2130.1,2129.1,2.1743]
[1625176037554,7.0431439,2130.5,2129.1,2.1743]
[1625176037555,3.5213839,2130.5,2129.1,2.1743]
[1625176037647,11.76131118,2130.8,2129.1,2.1743]
[1625176038090,11.76131118,2130.8,2129.1,21.79568082]
[1625176038191,11.76131118,2130.8,2129.1,24.89568082]
[1625176038288,11.76131118,2130.8,2129.1,29.90568082]
[1625176038494,11.76131118,2130.8,2129.1,14.90568082]
[1625176038793,7.03985,2130.7,2129.1,19.77290082]
[1625176038942,7.03985,2130.7,2129.2,2.03]
[1625176039676,12.04985,2130.7,2129.2,2.03]
[1625176039774,12.04985,2130.7,2129.1,4.60752445]
[1625176039927,12.04985,2130.7,2129.1,11.64913445]
[1625176040025,12.04985,2130.7,2129.1,4.60752445]
[1625176040125,20.04985,2130.7,2129.1,4.60752445]
[1625176040276,0.1,2130.6,2129.1,4.60752445]
[1625176040425,0.1,2130.6,2128.3,11.7343]
[1625176040524,0.15255269,2130.5,2128.4,4.2033]
[1625176040626,0.14041687,2130.5,2128.4,4.2033]
[1625176040730,0.14041687,2130.5,2128.4,2.0]
[1625176040825,0.14041687,2130.5,2128.4,4.0794]
[1625176040928,3.4398968,2130.5,2128.4,2.0]
[1625176041028,7.04348,2129.6,2128.3,4.49268197]
[1625176041227,12.05348,2129.6,2128.3,4.49268197]
[1625176041945,12.05348,2129.6,2128.3,2.2447]
[1625176042043,12.05348,2129.6,2128.2,7.50522548]
[1625176042146,12.05348,2129.6,2128.3,2.0735]
[1625176042748,12.05348,2129.6,2128.2,0.46105548]
[1625176042749,20.06650504,2129.6,2128.2,0.46105548]
[1625176042848,3.5232581,2129.4,2128.2,0.46105548]
[1625176043048,8.67427221,2129.4,2128.2,0.46105548]
[1625176043152,8.5332581,2129.4,2128.2,0.46105548]
[1625176043251,0.12,2129.3,2128.2,0.46105548]
[1625176043633,0.08,2129.2,2128.2,0.46105548]
[1625176044078,7.04669,2128.8,2128.2,0.46105548]
[1625176044172,10.08329,2128.8,2128.2,0.46105548]
[1625176044272,15.09329,2128.8,2128.2,0.46105548]
[1625176044426,0.04,2128.7,2128.2,0.46105548]
[1625176046473,7.04828,2128.5,2128.2,0.46105548]
[1625176046571,12.05828,2128.5,2128.2,0.46105548]
[1625176046721,0.06,2128.4,2128.2,0.46105548]
[1625176047124,15.8678,2128.6,2128.2,0.46105548]
[1625176047382,15.8678,2128.6,2127.8,0.03588361]
[1625176047383,23.8678,2128.6,2127.8,0.03588361]
[1625176047480,7.04906,2128.3,2127.8,0.03588361]
[1625176047626,15.68586,2128.3,2127.8,0.03588361]
[1625176047731,10.67586,2128.3,2127.8,0.03588361]
[1625176047829,27.2114028,2128.3,2127.1,0.18450218]
[1625176047928,0.25593748,2128.2,2127.1,0.18450218]
[1625176048032,0.45593748,2128.2,2127.1,0.18450218]
[1625176048129,3.68736945,2127.8,2127.1,0.18450218]
[1625176048432,8.69736945,2127.8,2127.1,0.18450218]
[1625176048670,7.05216,2127.5,2127.1,0.18450218]
[1625176048869,0.14,2127.4,2127.1,0.18450218]
[1625176049166,5.01,2127.5,2127.1,0.18450218]
[1625176049315,1.0923,2127.6,2127.1,0.18450218]
[1625176049716,7.05246,2127.4,2127.1,0.18450218]
[1625176049917,12.06246,2127.4,2127.1,0.18450218]
[1625176050121,0.08,2127.3,2127.1,0.18450218]
[1625176050218,3.3082,2127.3,2127.1,0.18450218]
[1625176050419,8.3182,2127.3,2127.1,0.18450218]
[1625176050524,8.3182,2127.3,2126.8,0.04190841]
[1625176050623,0.14,2127.2,2126.8,0.04190841]
[1625176050982,7.19358,2127.2,2126.8,0.04190841]
[1625176051077,12.20358,2127.2,2126.8,0.04190841]
[1625176051282,0.04,2127.1,2126.8,0.04190841]
[1625176052083,7.0546,2127.0,2126.8,0.04190841]
[1625176052181,0.04,2127.1,2126.8,0.04190841]
[1625176052283,8.2382,2127.3,2126.8,0.04190841]
[1625176052882,3.2282,2127.3,2126.8,0.04190841]
[1625176053069,0.03886945,2127.8,2126.8,0.04190841]
[1625176053427,7.05137,2127.7,2126.8,0.04190841]
[1625176053676,0.08,2127.6,2126.8,0.04190841]
[1625176054226,0.03886945,2127.8,2126.8,0.04190841]
[1625176055030,7.05236,2127.4,2126.8,0.04190841]
[1625176055229,12.06236,2127.4,2126.8,0.04190841]
[1625176056417,5.01,2127.4,2126.8,0.04190841]
[1625176056521,0.03886945,2127.8,2126.8,0.04190841]
[1625176056670,0.03886945,2127.8,2126.8,4.01630841]
[1625176057580,0.03886945,2127.8,2126.8,11.06599841]
[1625176057733,0.03886945,2127.8,2126.8,26.09877541]
[1625176057830,0.03886945,2127.8,2126.8,11.04908541]
[1625176057927,0.03886945,2127.8,2126.8,13.02960238]
[1625176058479,0.03886945,2127.8,2126.8,21.02960238]
[1625176058998,0.03886945,2127.8,2126.8,13.02960238]
[1625176059195,0.03886945,2127.8,2126.9,2.0383]
[1625176059295,0.03886945,2127.8,2127.1,9.39758]
[1625176059396,0.03886945,2127.8,2127.0,1.1791]
[1625176059844,0.03886945,2127.8,2127.0,1.0791]
[1625176060349,0.03886945,2127.8,2127.1,2.1305]
[1625176060748,0.03886945,2127.8,2127.2,0.12]
[1625176060848,0.03886945,2127.8,2127.2,4.1240552]
[1625176061098,0.03886945,2127.8,2127.3,5.7983]
[1625176061260,0.03588361,2128.3,2127.3,5.7983]
[1625176061350,0.03588361,2128.3,2127.3,8.6407]
[1625176061503,0.03588361,2128.3,2127.4,4.314977]
[1625176061697,0.03588361,2128.3,2127.4,9.324977]
[1625176061797,0.03588361,2128.3,2127.4,7.032777]
[1625176061899,0.03588361,2128.3,2127.5,2.2317]
[1625176062431,0.03588361,2128.3,2127.6,7.04624]
[1625176062531,0.03588361,2128.3,2127.6,12.05624]
[1625176062681,0.03588361,2128.3,2127.7,2.1569]
[1625176063132,0.03588361,2128.3,2127.5,3.0553]
[1625176063431,0.03588361,2128.3,2127.5,1.0553]
[1625176063532,7.04937,2128.0,2127.5,1.0553]
[1625176063636,7.04937,2128.0,2126.8,0.04190841]
[1625176063733,0.16,2127.9,2126.8,0.04190841]
[1625176064426,0.04,2127.8,2126.8,0.04190841]
[1625176064523,3.2273,2127.8,2126.8,0.04190841]
[1625176064721,8.2373,2127.8,2126.8,0.04190841]
[1625176064922,0.14,2127.7,2126.8,0.04190841]
[1625176065128,7.05252,2127.3,2126.8,0.04190841]
[1625176065273,11.18152,2127.3,2126.8,0.04190841]
[1625176065422,0.08,2127.2,2126.8,0.04190841]
[1625176066284,7.05308,2127.0,2126.8,0.04190841]
[1625176066475,12.06308,2127.0,2126.8,0.04190841]
[1625176066684,9.41859252,2127.0,2126.8,0.04190841]
[1625176068190,9.41859252,2127.0,2126.3,0.04496229]
[1625176068985,4.40859252,2127.0,2126.3,0.04496229]
[1625176069086,0.04190841,2127.3,2126.3,0.04496229]
[1625176069340,0.04190841,2127.3,2126.1,0.19496229]
[1625176069436,0.04190841,2127.3,2126.3,3.111]
[1625176069638,0.04496229,2126.8,2126.3,3.111]
[1625176069990,0.04496229,2126.8,2126.3,10.1629]
[1625176070187,0.04496229,2126.8,2126.3,3.111]
[1625176071094,7.09943229,2126.8,2126.3,3.111]
[1625176071178,7.09943229,2126.8,2126.1,0.19496229]
[1625176071328,12.10943229,2126.8,2126.1,0.19496229]
[1625176071426,7.09943229,2126.8,2126.1,0.19496229]
[1625176071581,12.10943229,2126.8,2126.1,6.229e-05]
[1625176071680,30.09943229,2126.8,2126.1,6.229e-05]
[1625176071782,0.1,2126.7,2126.1,6.229e-05]
[1625176072031,28.05496229,2126.8,2126.1,6.229e-05]
[1625176072032,0.08,2126.6,2126.1,6.229e-05]
[1625176072134,7.05648,2126.5,2126.1,6.229e-05]
[1625176072279,22.05648,2126.5,2126.1,6.229e-05]
[1625176072433,22.05648,2126.5,2125.3,0.05094418]
[1625176072434,0.31360064,2126.4,2125.3,0.05094418]
[1625176072631,0.04798913,2126.3,2125.3,0.05094418]
[1625176072729,0.19632672,2126.3,2125.3,0.05094418]
[1625176072831,0.20795312,2126.3,2125.3,0.05094418]
[1625176072978,0.13945239,2126.1,2125.3,0.05094418]
[1625176073080,4.44695239,2126.1,2125.3,0.05094418]
[1625176073177,19.44695239,2126.1,2125.3,0.05094418]
[1625176073329,0.06,2126.0,2125.3,0.05094418]
[1625176073431,7.05893,2125.7,2125.3,0.00094418]
[1625176073535,0.17995658,2125.6,2124.3,0.02128194]
[1625176073723,5.12125658,2125.6,2124.3,0.0313788]
[1625176073875,5.13266135,2125.6,2124.3,0.0313788]
[1625176073974,0.05378086,2125.3,2124.3,0.0313788]
[1625176074477,0.05378086,2125.3,2124.3,9.3766688]
[1625176074578,0.05378086,2125.3,2124.3,7.0898688]
[1625176074830,0.05378086,2125.3,2124.3,12.0498688]
[1625176074926,0.05378086,2125.3,2124.3,7.0398688]
[1625176075076,0.05645197,2124.8,2124.3,12.0498688]
[1625176075174,0.05645197,2124.8,2124.3,7.0398688]
[1625176075376,0.05645197,2124.8,2124.1,11.95982]
[1625176075580,5.01,2125.1,2124.2,2.0321]
[1625176075681,0.05378086,2125.3,2124.2,2.0321]
[1625176075979,0.05378086,2125.3,2124.1,11.95982]
[1625176076179,0.05378086,2125.3,2124.3,2.0375]
[1625176076283,0.05378086,2125.3,2124.3,9.09597]
[1625176076531,0.05378086,2125.3,2124.3,14.10597]
[1625176076684,0.05378086,2125.3,2124.3,12.06847]
[1625176076789,0.05378086,2125.3,2124.4,2.2521]
[1625176076888,0.05378086,2125.3,2124.4,4.22416108]
[1625176076985,0.05378086,2125.3,2124.5,2.0724]
[1625176077286,0.05378086,2125.3,2124.6,0.16]
[1625176077387,0.05378086,2125.3,2124.6,2.24714442]
[1625176077484,0.05378086,2125.3,2124.7,0.2]
[1625176077645,0.05378086,2125.3,2124.7,11.66656]
[1625176077826,0.05378086,2125.3,2124.8,15.0]
[1625176077885,0.05378086,2125.3,2124.8,25.22961245]
[1625176078032,0.05378086,2125.3,2124.9,0.2]
[1625176078137,0.05094418,2125.8,2124.9,2.3512]
[1625176078281,0.05094418,2125.8,2125.0,0.12]
[1625176078531,0.05094418,2125.8,2125.0,2.17066803]
[1625176078832,0.05094418,2125.8,2125.3,7.05466]
[1625176078933,0.05094418,2125.8,2125.3,10.96016]
[1625176079133,0.05094418,2125.8,2125.3,3.9055]
[1625176080229,0.05094418,2125.8,2125.2,2.8689]
[1625176080379,0.05094418,2125.8,2125.2,1.1707]
[1625176080783,0.05094418,2125.8,2124.9,5.01]
[1625176080883,0.05094418,2125.8,2124.8,0.05378086]
[1625176081782,7.10809418,2125.8,2124.8,0.05378086]
[1625176081882,4.3219329,2125.8,2124.8,0.05378086]
[1625176081984,9.3319329,2125.8,2124.8,0.05378086]
[1625176082854,5.01,2125.8,2124.8,0.05378086]
[1625176083004,5.01,2125.8,2124.9,0.12]
[1625176083154,0.04798913,2126.3,2124.8,0.05378086]
[1625176084153,0.04798913,2126.3,2125.3,7.05535]
[1625176084254,0.04798913,2126.3,2125.0,1.2674]
[1625176084576,0.04798913,2126.3,2125.1,2.2482]
[1625176084731,0.04798913,2126.3,2125.2,0.14]
[1625176085080,0.04798913,2126.3,2125.2,2.1536]
[1625176085176,0.04798913,2126.3,2125.3,15.0]
[1625176085277,0.04798913,2126.3,2125.8,7.05065]
[1625176085381,0.04496229,2126.8,2125.8,11.43665]
[1625176085530,0.04496229,2126.8,2125.9,2.1765]
[1625176085930,6.229e-05,2126.8,2125.9,2.1765]
[1625176086037,6.229e-05,2126.8,2126.0,18.52482]
[1625176086178,6.229e-05,2126.8,2126.0,26.72482]
[1625176086325,6.229e-05,2126.8,2126.1,2.4911]
[1625176086434,6.229e-05,2126.8,2126.1,21.73163123]
[1625176086527,0.04190841,2127.3,2126.1,34.74163123]
[1625176086629,0.04190841,2127.3,2126.7,7.04882]
[1625176086727,0.04190841,2127.3,2126.7,10.42542]
[1625176086871,0.04190841,2127.3,2126.7,15.43542]
[1625176087011,0.04190841,2127.3,2126.8,2.122]
[1625176087162,0.04190841,2127.3,2126.7,16.3866]
[1625176087262,0.04190841,2127.3,2126.7,18.5764]
[1625176087464,0.04190841,2127.3,2126.8,0.12]
[1625176087816,0.04190841,2127.3,2126.9,9.39803]
[1625176087917,0.04190841,2127.3,2126.7,5.68534867]
[1625176088117,0.04190841,2127.3,2126.7,3.3766]
[1625176088218,0.04190841,2127.3,2126.6,1.3912]
[1625176088315,0.04190841,2127.3,2126.0,4.0]
[1625176088316,0.04190841,2127.3,2126.2,9.35086]
[1625176088471,0.04190841,2127.3,2125.8,6.0]
[1625176088566,15.04190841,2127.3,2125.8,6.0]
[1625176088800,0.1,2127.2,2125.8,2.0]
[1625176088892,7.05481,2126.7,2125.8,2.0]
[1625176089114,12.06481,2126.7,2126.3,0.04496229]
[1625176089313,5.01,2126.7,2126.3,0.04496229]
[1625176089514,0.04190841,2127.3,2126.3,0.04496229]
[1625176089515,5.05190841,2127.3,2126.3,0.04496229]
[1625176089664,0.04190841,2127.3,2126.3,0.04496229]
[1625176089760,5.05190841,2127.3,2126.3,0.04496229]
[1625176089962,0.04190841,2127.3,2126.3,0.04496229]
[1625176090062,7.05393,2127.0,2126.3,0.04496229]
[1625176090164,5.05190841,2127.3,2126.3,0.04496229]
[1625176090366,0.04190841,2127.3,2126.3,0.04496229]
[1625176091121,0.04190841,2127.3,2126.3,7.09692229]
[1625176091782,0.04190841,2127.3,2126.4,0.06]
[1625176092283,0.04190841,2127.3,2126.3,0.04496229]
[1625176092738,15.04190841,2127.3,2125.8,0.04798913]
[1625176093033,4.22036229,2126.8,2125.8,0.04798913]
[1625176093235,9.23036229,2126.8,2125.8,0.04798913]
[1625176093696,4.22036229,2126.8,2125.8,0.04798913]
[1625176093895,9.23036229,2126.8,2125.8,0.04798913]
[1625176096428,16.28523229,2126.8,2125.8,0.04798913]
[1625176097880,31.28523229,2126.8,2125.8,0.04798913]
[1625176098647,16.28523229,2126.8,2125.8,0.04798913]
[1625176099298,0.06,2126.7,2125.8,0.04798913]
[1625176099401,7.05513,2126.6,2125.8,0.04798913]
[1625176099599,12.06513,2126.6,2125.8,0.04798913]
[1625176100011,5.01,2126.6,2125.8,0.04798913]
[1625176100116,0.04496229,2126.8,2125.8,0.04798913]
[1625176100211,0.04496229,2126.8,2125.8,3.62608913]
[1625176100358,0.04496229,2126.8,2125.9,0.1]
[1625176100460,0.04496229,2126.8,2126.1,7.05298]
[1625176100658,0.04496229,2126.8,2126.1,2.0593]
[1625176100858,0.04496229,2126.8,2126.1,2.1556]
[1625176101055,0.04496229,2126.8,2125.9,9.40397]
[1625176102894,0.04496229,2126.8,2125.9,14.41397]
[1625176103145,0.04496229,2126.8,2126.0,2.0242]
[1625176103596,0.04496229,2126.8,2126.0,9.077]
[1625176103836,0.04496229,2126.8,2126.0,7.0528]
[1625176103924,0.04496229,2126.8,2126.1,2.2448]
[1625176105043,7.09844229,2126.8,2126.1,2.2448]
[1625176105292,12.10844229,2126.8,2126.1,2.2448]
[1625176106046,12.10844229,2126.8,2125.8,0.04798913]
[1625176106554,27.10844229,2126.8,2125.8,0.04798913]
[1625176106646,27.11911812,2126.8,2125.8,0.04798913]
[1625176106746,0.1,2126.7,2125.8,0.04798913]
[1625176106998,3.5282,2126.6,2125.8,0.04798913]
[1625176107236,8.5382,2126.6,2125.8,0.04798913]
[1625176107386,0.08,2126.5,2125.8,0.04798913]
[1625176107488,7.05642,2126.2,2125.8,0.04798913]
[1625176107586,12.06642,2126.2,2125.8,0.04798913]
[1625176107690,5.01,2126.2,2125.8,0.04798913]
[1625176107888,0.04,2126.4,2125.8,0.04798913]
[1625176108087,8.5381642,2126.5,2125.8,0.04798913]
[1625176108552,7.05642,2126.2,2125.8,0.04798913]
[1625176108737,15.77692,2126.2,2125.8,0.04798913]
[1625176108939,16.7205,2126.2,2125.8,0.04798913]
[1625176109041,8.7205,2126.2,2125.8,0.04798913]
[1625176109140,0.1,2126.1,2125.8,0.04798913]
[1625176109366,0.1,2126.1,2125.3,0.05094418]
[1625176109520,11.6290049,2126.1,2125.3,0.05094418]
[1625176109620,15.0,2126.0,2125.3,0.05094418]
[1625176109717,15.1,2126.0,2125.3,0.05094418]
[1625176109817,20.11,2126.0,2125.3,0.05094418]
[1625176109920,0.1,2125.9,2125.3,0.05094418]
[1625176110523,7.05738,2125.7,2125.3,0.05094418]
[1625176110620,10.96438,2125.7,2125.3,0.05094418]
[1625176110720,15.97438,2125.7,2125.3,0.05094418]
[1625176111067,13.1878658,2125.7,2124.8,0.05378086]
[1625176111173,28.32752887,2125.7,2124.8,0.05378086]
[1625176111267,28.1878658,2125.7,2124.8,0.05378086]
[1625176111593,23.917,2125.7,2124.8,0.05378086]
[1625176112547,15.97438,2125.7,2124.8,0.05378086]
[1625176112798,8.917,2125.7,2124.8,0.05378086]
[1625176113298,3.907,2125.7,2124.8,0.05378086]
[1625176113399,0.05094418,2125.8,2124.8,0.05378086]
[1625176113836,0.05094418,2125.8,2124.8,7.11101086]
[1625176115494,7.10834418,2125.8,2124.8,7.11101086]
[1625176115694,12.11834418,2125.8,2124.8,7.11101086]
[1625176116135,12.11834418,2125.8,2124.8,0.05378086]
[1625176116585,12.11834418,2125.8,2124.8,7.11091086]
[1625176119360,12.11834418,2125.8,2124.8,0.05378086]
[1625176119658,0.06,2125.7,2124.8,0.05378086]
[1625176120262,0.05094418,2125.8,2124.8,0.05378086]
[1625176121000,7.0586,2125.3,2124.8,0.05378086]
[1625176121100,10.5664,2125.3,2124.8,0.05378086]
[1625176121252,15.5764,2125.3,2124.8,0.05378086]
[1625176122054,3.5078,2125.3,2124.8,0.05378086]
[1625176122301,0.05094418,2125.8,2124.8,0.05378086]
[1625176123397,0.05094418,2125.8,2124.8,7.11105086]
[1625176124047,0.05094418,2125.8,2124.8,6.61105086]
[1625176124350,0.05378086,2125.3,2124.8,6.61105086]
[1625176124450,0.05378086,2125.3,2124.8,11.62105086]
[1625176124650,0.05378086,2125.3,2124.9,0.2]
[1625176124852,0.05094418,2125.8,2124.9,0.2]
[1625176125299,0.05094418,2125.8,2124.7,14.41914]
[1625176125951,0.05094418,2125.8,2125.0,9.40786]
[1625176126399,0.05094418,2125.8,2124.7,14.41914]